Workbook

Sheet الشهادة
C3: بطـاقة تقـدير الدرجـات لمرحـلة التعليـم الثانـوي
C5: للصـف الثاني ( القسم الادبي ) - الفصل الدراسي الأول
C6: للعام الدراسي : 1439 - 1440 هجري - 2018 - 2019 ميلادي
C7: مدرسة : 24 ديسمبر
C9: اسم الطالب : | E9: =VLOOKUP($S$9,الدرجات!$B$10:$AL$48,2,0) -> الطالب رقم 1 | P9: الفصل : | Q9: 1/2 | S9: 1
C11: النهـــــــايات | E11: المــــــــواد الدراســـــــــيـة
E12: اللغة العــــــربية | F12: اللغة الإنجليزية | G12: الجغــــــــرافيا | H12: التـــــــــاريخ | I12: التربية الإسلامية | J12: تقنية المعلومات | K12: الاحصـــــــــاء | L12: الفلسفــــــــــــــة | M12: علم الاجتماع | N12: علم النفس | P12: المجمـــــــــــوع | Q12: التربية البدنية
C13: النهاية الكـــبرى | E13: 190 | F13: 120 | G13: 60 | H13: 60 | I13: 40 | J13: 40 | K13: 40 | L13: 40 | M13: 40 | N13: 40 | P13: 670
C14: النهاية الصغرى | E14: 90 | F14: 60 | G14: 30 | H14: 30 | I14: 20 | J14: 20 | K14: 20 | L14: 20 | M14: 20 | N14: 20 | P14: 335
C15: اعمــــــال السنة | E15: =VLOOKUP($E$9,الدرجات!$C$10:$AL$48,3,0) -> 75 | F15: =VLOOKUP($E$9,الدرجات!$C$10:$AL$48,6,0) -> 46 | G15: =VLOOKUP($E$9,الدرجات!$C$10:$AL$48,9,0) -> 21 | H15: =VLOOKUP($E$9,الدرجات!$C$10:$AL$48,12,0) -> 18 | I15: =VLOOKUP($E$9,الدرجات!$C$10:$AL$48,15,0) -> 17 | J15: =VLOOKUP($E$9,الدرجات!$C$10:$AL$48,18,0) -> 10 | K15: =VLOOKUP($E$9,الدرجات!$C$10:$AL$48,21,0) -> 13 | L15: =VLOOKUP($E$9,الدرجات!$C$10:$AL$48,24,0) -> 16 | M15: =VLOOKUP($E$9,الدرجات!$C$10:$AL$48,27,0) -> 18 | N15: =VLOOKUP($E$9,الدرجات!$C$10:$AL$48,30,0) -> 14 | P15: =SUM(E15:N15) -> 248
C16: درجة الامتحـــان | E16: =VLOOKUP($E$9,الدرجات!$C$10:$AL$48,4,0) -> 50 | F16: =VLOOKUP($E$9,الدرجات!$C$10:$AL$48,7,0) -> 46 | G16: =VLOOKUP($E$9,الدرجات!$C$10:$AL$48,10,0) -> 20 | H16: =VLOOKUP($E$9,الدرجات!$C$10:$AL$48,13,0) -> 12 | I16: =VLOOKUP($E$9,الدرجات!$C$10:$AL$48,16,0) -> 13 | J16: =VLOOKUP($E$9,الدرجات!$C$10:$AL$48,19,0) -> 5 | K16: =VLOOKUP($E$9,الدرجات!$C$10:$AL$48,22,0) -> 7 | L16: =VLOOKUP($E$9,الدرجات!$C$10:$AL$48,25,0) -> 13 | M16: =VLOOKUP($E$9,الدرجات!$C$10:$AL$48,28,0) -> 12 | N16: =VLOOKUP($E$9,الدرجات!$C$10:$AL$48,31,0) -> 14 | P16: =SUM(E16:O16) -> 192
C17: درجة الطـــــــــالب | E17: =VLOOKUP($E$9,الدرجات!$C$10:$AL$48,5,0) -> 125 | F17: =VLOOKUP($E$9,الدرجات!$C$10:$AL$48,8,0) -> 92 | G17: =VLOOKUP($E$9,الدرجات!$C$10:$AL$48,11,0) -> 41 | H17: =VLOOKUP($E$9,الدرجات!$C$10:$AL$48,14,0) -> 30 | I17: =VLOOKUP($E$9,الدرجات!$C$10:$AL$48,17,0) -> 30 | J17: =VLOOKUP($E$9,الدرجات!$C$10:$AL$48,20,0) -> 15 | K17: =VLOOKUP($E$9,الدرجات!$C$10:$AL$48,23,0) -> 20 | L17: =VLOOKUP($E$9,الدرجات!$C$10:$AL$48,26,0) -> 29 | M17: =VLOOKUP($E$9,الدرجات!$C$10:$AL$48,29,0) -> 30 | N17: =VLOOKUP($E$9,الدرجات!$C$10:$AL$48,32,0) -> 28 | P17: =SUM(E17:N17) -> 440
C19: نتيجة الطالب : | E19: =VLOOKUP($E$9,الدرجات!$C$10:$AL$48,36,0) -> يحتاج إلى عناية في : تقنية المعلومات
C21: شرط نجاح الطالب حصوله على 50 % من المجموع
C22: التوقيعـــــــــــــــــات
C23: رائد الفصل | G23: مدير المدرسة | M23: ولي الامر
C29: بطـاقة تقـدير الدرجـات لمرحـلة التعليـم الثانـوي
C31: للصـف الثاني ( القسم الادبي ) - الفصل الدراسي الأول
C32: للعام الدراسي : 1439 - 1440 هجري - 2018 - 2019 ميلادي
C33: مدرسة : 24 ديسمبر
C35: اسم الطالب : | E35: =VLOOKUP($S$35,الدرجات!$B$10:$AL$48,2,0) -> الطالب رقم 2 | P35: الفصل : | Q35: 1/2 | S35: =S9+1 -> 2
C37: النهـــــــايات | E37: المــــــــواد الدراســـــــــيـة
E38: اللغة العــــــربية | F38: اللغة الإنجليزية | G38: الجغــــــــرافيا | H38: التـــــــــاريخ | I38: التربية الإسلامية | J38: تقنية المعلومات | K38: الاحصـــــــــاء | L38: الفلسفــــــــــــــة | M38: علم الاجتماع | N38: علم النفس | P38: المجمـــــــــــوع | Q38: التربية البدنية
C39: النهاية الكـــبرى | E39: 190 | F39: 120 | G39: 60 | H39: 60 | I39: 40 | J39: 40 | K39: 40 | L39: 40 | M39: 40 | N39: 40 | P39: 670
C40: النهاية الصغرى | E40: 90 | F40: 60 | G40: 30 | H40: 30 | I40: 20 | J40: 20 | K40: 20 | L40: 20 | M40: 20 | N40: 20 | P40: 335
C41: اعمــــــال السنة | E41: =VLOOKUP($E$35,الدرجات!$C$10:$AL$48,3,0) -> 79 | F41: =VLOOKUP($E$35,الدرجات!$C$10:$AL$48,6,0) -> 46 | G41: =VLOOKUP($E$35,الدرجات!$C$10:$AL$48,9,0) -> 20 | H41: =VLOOKUP($E$35,الدرجات!$C$10:$AL$48,12,0) -> 21 | I41: =VLOOKUP($E$35,الدرجات!$C$10:$AL$48,15,0) -> 15 | J41: =VLOOKUP($E$35,الدرجات!$C$10:$AL$48,18,0) -> 12 | K41: =VLOOKUP($E$35,الدرجات!$C$10:$AL$48,21,0) -> 13 | L41: =VLOOKUP($E$35,الدرجات!$C$10:$AL$48,24,0) -> 17 | M41: =VLOOKUP($E$35,الدرجات!$C$10:$AL$48,27,0) -> 18 | N41: =VLOOKUP($E$35,الدرجات!$C$10:$AL$48,30,0) -> 12 | P41: =SUM(E41:N41) -> 253
C42: درجة الامتحـــان | E42: =VLOOKUP($E$35,الدرجات!$C$10:$AL$48,4,0) -> 52 | F42: =VLOOKUP($E$35,الدرجات!$C$10:$AL$48,7,0) -> 52 | G42: =VLOOKUP($E$35,الدرجات!$C$10:$AL$48,10,0) -> 21 | H42: =VLOOKUP($E$35,الدرجات!$C$10:$AL$48,13,0) -> 8 | I42: =VLOOKUP($E$35,الدرجات!$C$10:$AL$48,16,0) -> 16 | J42: =VLOOKUP($E$35,الدرجات!$C$10:$AL$48,19,0) -> 7 | K42: =VLOOKUP($E$35,الدرجات!$C$10:$AL$48,22,0) -> 12 | L42: =VLOOKUP($E$35,الدرجات!$C$10:$AL$48,25,0) -> 14 | M42: =VLOOKUP($E$35,الدرجات!$C$10:$AL$48,28,0) -> 11 | N42: =VLOOKUP($E$35,الدرجات!$C$10:$AL$48,31,0) -> 13 | P42: =SUM(E42:O42) -> 206
C43: درجة الطـــــــــالب | E43: =VLOOKUP($E$35,الدرجات!$C$10:$AL$48,5,0) -> 131 | F43: =VLOOKUP($E$35,الدرجات!$C$10:$AL$48,8,0) -> 98 | G43: =VLOOKUP($E$35,الدرجات!$C$10:$AL$48,11,0) -> 41 | H43: =VLOOKUP($E$35,الدرجات!$C$10:$AL$48,14,0) -> 29 | I43: =VLOOKUP($E$35,الدرجات!$C$10:$AL$48,17,0) -> 31 | J43: =VLOOKUP($E$35,الدرجات!$C$10:$AL$48,20,0) -> 19 | K43: =VLOOKUP($E$35,الدرجات!$C$10:$AL$48,23,0) -> 25 | L43: =VLOOKUP($E$35,الدرجات!$C$10:$AL$48,26,0) -> 31 | M43: =VLOOKUP($E$35,الدرجات!$C$10:$AL$48,29,0) -> 29 | N43: =VLOOKUP($E$35,الدرجات!$C$10:$AL$48,32,0) -> 25 | P43: =SUM(E43:N43) -> 459
C45: نتيجة الطالب : | E45: =VLOOKUP($E$35,الدرجات!$C$10:$AL$48,36,0) -> يحتاج إلى عناية في : التاريخ و تقنية المعلومات
C47: شرط نجاح الطالب حصوله على 50 % من المجموع
C48: التوقيعـــــــــــــــــات
C49: رائد الفصل | G49: مدير المدرسة | M49: ولي الامر

Sheet الدرجات
G1: كشف رصد درجات أعمال الفصل الأول للصف الثاني القسم الأدبي | AI1: نموذج امتحان رقم (3)
A2: 1 | B2: 2 | C2: 3 | D2: 4 | E2: 5 | F2: 6 | G2: 7 | H2: 8 | I2: 9 | J2: 10 | K2: 11 | L2: 12 | M2: 13 | N2: 14 | O2: 15 | P2: 16 | Q2: 17 | R2: 18 | S2: 19 | T2: 20 | U2: 21 | V2: 22 | W2: 23 | X2: 24 | Y2: 25 | Z2: 26 | AA2: 27 | AB2: 28 | AC2: 29 | AD2: 30 | AE2: 31 | AF2: 32 | AG2: 33 | AH2: 34 | AX2: 1 | AY2: الترتيب الأول
L3: المرحلة / التعليم الثانوي | U3: الصف / الثاني | Z3: القسم / الأدبي | AX3: 2 | AY3: الترتيب الثاني
E4: العام الدراسي : 1437هـ - 1438هـ الموافق : 2017 - 2018 م مكتب الامتحانات بمنطقة / تاجوراء | AX4: 3 | AY4: الترتيب الثالث
B5: رقم مسلسل | C5: اسم الطالب بالكامل | D5: رقم الجلوس | E5: المواد الدراسية
E6: اللغة العربية | G6: 9 | H6: اللغة الإنجليزية | J6: 6 | K6: الجغرافيا | M6: 3 | N6: التاريخ | P6: 3 | Q6: التربية الإسلامية | S6: 2 | T6: تقنية المعلومات | V6: 2 | W6: الإحصاء | Y6: 2 | Z6: الفلسفة | AB6: 2 | AC6: علم الاجتماع | AE6: 2 | AF6: علم النفس | AH6: 2 | AI6: المجموع العام | AJ6: الفصل | AK6: الجنس | AL6: نتيجة الطالب
E7: اعمال السنـــة | F7: درجة الأمتحان | G7: المجمـــــــــوع | H7: اعمال السنـــة | I7: درجة الأمتحان | J7: المجمـــــــــوع | K7: اعمال السنـــة | L7: درجة الأمتحان | M7: المجمـــــــــوع | N7: اعمال السنـــة | O7: درجة الأمتحان | P7: المجمـــــــــوع | Q7: اعمال السنـــة | R7: درجة الأمتحان | S7: المجمـــــــــوع | T7: اعمال السنـــة | U7: درجة الأمتحان | V7: المجمـــــــــوع | W7: اعمال السنـــة | X7: درجة الأمتحان | Y7: المجمـــــــــوع | Z7: اعمال السنـــة | AA7: درجة الأمتحان | AB7: المجمـــــــــوع | AC7: اعمال السنـــة | AD7: درجة الأمتحان | AE7: المجمـــــــــوع | AF7: اعمال السنـــة | AG7: درجة الأمتحان | AH7: المجمـــــــــوع
E8: 90 | F8: 90 | G8: 180 | H8: 60 | I8: 60 | J8: 120 | K8: 30 | L8: 30 | M8: 60 | N8: 30 | O8: 30 | P8: 60 | Q8: 20 | R8: 20 | S8: 40 | T8: 20 | U8: 20 | V8: 40 | W8: 20 | X8: 20 | Y8: 40 | Z8: 20 | AA8: 20 | AB8: 40 | AC8: 20 | AD8: 20 | AE8: 40 | AF8: 20 | AG8: 20 | AH8: 40
B9: عمود1 | C9: عمود2 | D9: عمود3 | E9: عمود4 | F9: عمود5 | G9: عمود6 | H9: عمود7 | I9: عمود8 | J9: عمود9 | K9: عمود10 | L9: عمود11 | M9: عمود12 | N9: عمود13 | O9: عمود14 | P9: عمود15 | Q9: عمود16 | R9: عمود17 | S9: عمود18 | T9: عمود19 | U9: عمود20 | V9: عمود21 | W9: عمود22 | X9: عمود23 | Y9: عمود24 | Z9: عمود25 | AA9: عمود26 | AB9: عمود27 | AC9: عمود28 | AD9: عمود29 | AE9: عمود30 | AF9: عمود31 | AG9: عمود32 | AH9: عمود33 | AI9: عمود34 | AJ9: عمود35 | AK9: عمود36 | AL9: عمود37 | AM9: 1 | AN9: 2 | AO9: 3 | AP9: 4 | AQ9: 5 | AR9: 6 | AS9: 7 | AT9: 8 | AU9: 9 | AV9: 10 | AY9: الترتيب
B10: =IF(C10<>"",SUBTOTAL(3,$C$10:C10),"") -> 1 | C10: الطالب رقم 1 | D10: 701 | E10: 75 | F10: 50 | G10: 125 | H10: 46 | I10: 46 | J10: 92 | K10: 21 | L10: 20 | M10: 41 | N10: 18 | O10: 12 | P10: 30 | Q10: 17 | R10: 13 | S10: 30 | T10: 10 | U10: 5 | V10: 15 | W10: 13 | X10: 7 | Y10: 20 | Z10: 16 | AA10: 13 | AB10: 29 | AC10: 18 | AD10: 12 | AE10: 30 | AF10: 14 | AG10: 14 | AH10: 28 | AI10: 440 | AJ10: =IF(AW10=FALSE,"",الجدول324[[#This Row],[عمود34]]/670*100) ->  | AK10: =evaltion(الجدول324[[#This Row],[عمود35]]) -> 0 | AL10: =IF(الجدول324[[#This Row],[عمود36]]="ممتاز", "ناجح بتقدير ممتاز"&" "&AX10,IF(الجدول324[[#This Row],[عمود36]]="جيد جدا","ناجح بتقدير جيد جدا"&" "&AX10,IF(الجدول324[[#This Row],[عمود36]]="جيد فقط","ناجح بتقدير جيد فقط"&" "&AX10,IF(الجدول324[[#This Row],[عمود36]]="مقبول","ناجح بتقدير مقبول"&" "&AX10,IF(COUNTBLANK($AM10:$AV10)=10,الجدول324[[#This Row],[عمود36]],"يحتاج إلى عناية في : "&textjoin(" و ",$AM10:$AV10)))))) -> يحتاج إلى عناية في : تقنية المعلومات | AM10: =IF($G10<($G$8/2),$E$6,"") ->  | AN10: =IF($J10<($J$8/2),$H$6,"") ->  | AO10: =IF($M10<($M$8/2),$K$6,"") ->  | AP10: =IF($P10<($P$8/2),$N$6,"") ->  | AQ10: =IF($S10<($S$8/2),$Q$6,"") ->  | AR10: =IF($V10<($V$8/2),$T$6,"") -> تقنية المعلومات | AS10: =IF($Y10<($Y$8/2),$W$6,"") ->  | AT10: =IF($AB10<($AB$8/2),$Z$6,"") ->  | AU10: =IF($AE10<($AE$8/2),$AC$6,"") ->  | AV10: =IF($AH10<($AH$8/2),$AF$6,"") ->  | AW10: =AND(AM10="",AN10="",AO10="",AP10="",AQ10="",AR10="",AS10="",AT10="",AU10="",AV10="") -> FALSE | AX10: =IF(AY10>10,"",atrteb(AY10)) ->  | AY10: =RANK(AI10,$AI$10:$AI$44) -> 31
B11: =IF(C11<>"",SUBTOTAL(3,$C$10:C11),"") -> 2 | C11: الطالب رقم 2 | D11: 702 | E11: 79 | F11: 52 | G11: 131 | H11: 46 | I11: 52 | J11: 98 | K11: 20 | L11: 21 | M11: 41 | N11: 21 | O11: 8 | P11: 29 | Q11: 15 | R11: 16 | S11: 31 | T11: 12 | U11: 7 | V11: 19 | W11: 13 | X11: 12 | Y11: 25 | Z11: 17 | AA11: 14 | AB11: 31 | AC11: 18 | AD11: 11 | AE11: 29 | AF11: 12 | AG11: 13 | AH11: 25 | AI11: 459 | AJ11: =IF(AW11=FALSE,"",الجدول324[[#This Row],[عمود34]]/670*100) ->  | AK11: =evaltion(الجدول324[[#This Row],[عمود35]]) -> 0 | AL11: =IF(الجدول324[[#This Row],[عمود36]]="ممتاز", "ناجح بتقدير ممتاز"&" "&AX11,IF(الجدول324[[#This Row],[عمود36]]="جيد جدا","ناجح بتقدير جيد جدا"&" "&AX11,IF(الجدول324[[#This Row],[عمود36]]="جيد فقط","ناجح بتقدير جيد فقط"&" "&AX11,IF(الجدول324[[#This Row],[عمود36]]="مقبول","ناجح بتقدير مقبول"&" "&AX11,IF(COUNTBLANK($AM11:$AV11)=10,الجدول324[[#This Row],[عمود36]],"يحتاج إلى عناية في : "&textjoin(" و ",$AM11:$AV11)))))) -> يحتاج إلى عناية في : التاريخ و تقنية المعلومات | AP11: التاريخ | AR11: تقنية المعلومات | AW11: FALSE | AX11: =IF(AY11>10,"",atrteb(AY11)) ->  | AY11: =RANK(AI11,$AI$10:$AI$44) -> 27
B12: =IF(C12<>"",SUBTOTAL(3,$C$10:C12),"") -> 3 | C12: الطالب رقم 3 | D12: 703 | E12: 70 | F12: 63 | G12: 133 | H12: 49 | I12: 46 | J12: 95 | K12: 17 | L12: 19 | M12: 36 | N12: 20 | O12: 9 | P12: 29 | Q12: 11 | R12: 12 | S12: 23 | T12: 9 | U12: 6 | V12: 15 | W12: 10 | X12: 6 | Y12: 16 | Z12: 11 | AA12: 12 | AB12: 23 | AC12: 17 | AD12: 15 | AE12: 32 | AF12: 13 | AG12: 15 | AH12: 28 | AI12: 430 | AJ12: =IF(AW12=FALSE,"",الجدول324[[#This Row],[عمود34]]/670*100) ->  | AK12: =evaltion(الجدول324[[#This Row],[عمود35]]) -> 0 | AL12: =IF(الجدول324[[#This Row],[عمود36]]="ممتاز", "ناجح بتقدير ممتاز"&" "&AX12,IF(الجدول324[[#This Row],[عمود36]]="جيد جدا","ناجح بتقدير جيد جدا"&" "&AX12,IF(الجدول324[[#This Row],[عمود36]]="جيد فقط","ناجح بتقدير جيد فقط"&" "&AX12,IF(الجدول324[[#This Row],[عمود36]]="مقبول","ناجح بتقدير مقبول"&" "&AX12,IF(COUNTBLANK($AM12:$AV12)=10,الجدول324[[#This Row],[عمود36]],"يحتاج إلى عناية في : "&textjoin(" و ",$AM12:$AV12)))))) -> يحتاج إلى عناية في : التاريخ و تقنية المعلومات و الإحصاء | AP12: التاريخ | AR12: تقنية المعلومات | AS12: الإحصاء | AW12: FALSE | AY12: 33
B13: =IF(C13<>"",SUBTOTAL(3,$C$10:C13),"") -> 4 | C13: الطالب رقم 4 | D13: 704 | E13: 81 | F13: 77 | G13: 158 | H13: 55 | I13: 56 | J13: 111 | K13: 29 | L13: 28 | M13: 57 | N13: 30 | O13: 21 | P13: 51 | Q13: 13 | R13: 18 | S13: 31 | T13: 13 | U13: 10 | V13: 23 | W13: 17 | X13: 13 | Y13: 30 | Z13: 19 | AA13: 15 | AB13: 34 | AC13: 19 | AD13: 19 | AE13: 38 | AF13: 20 | AG13: 20 | AH13: 40 | AI13: 573 | AJ13: =IF(AW13=FALSE,"",الجدول324[[#This Row],[عمود34]]/670*100) -> 85.52238806 | AK13: =evaltion(الجدول324[[#This Row],[عمود35]]) -> ممتاز | AL13: =IF(الجدول324[[#This Row],[عمود36]]="ممتاز", "ناجح بتقدير ممتاز"&" "&AX13,IF(الجدول324[[#This Row],[عمود36]]="جيد جدا","ناجح بتقدير جيد جدا"&" "&AX13,IF(الجدول324[[#This Row],[عمود36]]="جيد فقط","ناجح بتقدير جيد فقط"&" "&AX13,IF(الجدول324[[#This Row],[عمود36]]="مقبول","ناجح بتقدير مقبول"&" "&AX13,IF(COUNTBLANK($AM13:$AV13)=10,الجدول324[[#This Row],[عمود36]],"يحتاج إلى عناية في : "&textjoin(" و ",$AM13:$AV13)))))) -> ناجح بتقدير ممتاز الترتيب الخامس | AW13: TRUE | AX13: الترتيب الخامس | AY13: 5
B14: =IF(C14<>"",SUBTOTAL(3,$C$10:C14),"") -> 5 | C14: الطالب رقم 5 | D14: 705 | E14: 62 | F14: 69 | G14: 131 | H14: 36 | I14: 46 | J14: 82 | K14: 21 | L14: 24 | M14: 45 | N14: 30 | O14: 19 | P14: 49 | Q14: 13 | R14: 15 | S14: 28 | T14: 10 | U14: 8 | V14: 18 | W14: 11 | X14: 9 | Y14: 20 | Z14: 11 | AA14: 11 | AB14: 22 | AC14: 16 | AD14: 14 | AE14: 30 | AF14: 17 | AG14: 13 | AH14: 30 | AI14: 455 | AJ14: =IF(AW14=FALSE,"",الجدول324[[#This Row],[عمود34]]/670*100) ->  | AK14: =evaltion(الجدول324[[#This Row],[عمود35]]) -> 0 | AL14: =IF(الجدول324[[#This Row],[عمود36]]="ممتاز", "ناجح بتقدير ممتاز"&" "&AX14,IF(الجدول324[[#This Row],[عمود36]]="جيد جدا","ناجح بتقدير جيد جدا"&" "&AX14,IF(الجدول324[[#This Row],[عمود36]]="جيد فقط","ناجح بتقدير جيد فقط"&" "&AX14,IF(الجدول324[[#This Row],[عمود36]]="مقبول","ناجح بتقدير مقبول"&" "&AX14,IF(COUNTBLANK($AM14:$AV14)=10,الجدول324[[#This Row],[عمود36]],"يحتاج إلى عناية في : "&textjoin(" و ",$AM14:$AV14)))))) -> يحتاج إلى عناية في : تقنية المعلومات | AR14: تقنية المعلومات | AW14: FALSE | AY14: 28
B15: =IF(C15<>"",SUBTOTAL(3,$C$10:C15),"") -> 6 | C15: الطالب رقم 6 | D15: 706 | E15: 81 | F15: 77 | G15: 158 | H15: 60 | I15: 50 | J15: 110 | K15: 27 | L15: 25 | M15: 52 | N15: 30 | O15: 19 | P15: 49 | Q15: 16 | R15: 15 | S15: 31 | T15: 14 | U15: 10 | V15: 24 | W15: 15 | X15: 11 | Y15: 26 | Z15: 12 | AA15: 17 | AB15: 29 | AC15: 17 | AD15: 16 | AE15: 33 | AF15: 17 | AG15: 16 | AH15: 33 | AI15: 545 | AJ15: =IF(AW15=FALSE,"",الجدول324[[#This Row],[عمود34]]/670*100) -> 81.34328358 | AK15: =evaltion(الجدول324[[#This Row],[عمود35]]) -> جيد جدا | AL15: =IF(الجدول324[[#This Row],[عمود36]]="ممتاز", "ناجح بتقدير ممتاز"&" "&AX15,IF(الجدول324[[#This Row],[عمود36]]="جيد جدا","ناجح بتقدير جيد جدا"&" "&AX15,IF(الجدول324[[#This Row],[عمود36]]="جيد فقط","ناجح بتقدير جيد فقط"&" "&AX15,IF(الجدول324[[#This Row],[عمود36]]="مقبول","ناجح بتقدير مقبول"&" "&AX15,IF(COUNTBLANK($AM15:$AV15)=10,الجدول324[[#This Row],[عمود36]],"يحتاج إلى عناية في : "&textjoin(" و ",$AM15:$AV15)))))) -> ناجح بتقدير جيد جدا | AW15: TRUE | AY15: 13
B16: =IF(C16<>"",SUBTOTAL(3,$C$10:C16),"") -> 7 | C16: الطالب رقم 7 | D16: 707 | E16: 58 | F16: 54 | G16: 112 | H16: 58 | I16: 54 | J16: 112 | K16: 21 | L16: 18 | M16: 39 | N16: 20 | O16: 4 | P16: 24 | Q16: 16 | R16: 7 | S16: 23 | T16: 11 | U16: 3 | V16: 14 | W16: 12 | X16: 8 | Y16: 20 | Z16: 5 | AA16: 8 | AB16: 13 | AC16: 18 | AD16: 8 | AE16: 26 | AF16: 9 | AG16: 15 | AH16: 24 | AI16: 407 | AJ16: =IF(AW16=FALSE,"",الجدول324[[#This Row],[عمود34]]/670*100) ->  | AK16: =evaltion(الجدول324[[#This Row],[عمود35]]) -> 0 | AL16: =IF(الجدول324[[#This Row],[عمود36]]="ممتاز", "ناجح بتقدير ممتاز"&" "&AX16,IF(الجدول324[[#This Row],[عمود36]]="جيد جدا","ناجح بتقدير جيد جدا"&" "&AX16,IF(الجدول324[[#This Row],[عمود36]]="جيد فقط","ناجح بتقدير جيد فقط"&" "&AX16,IF(الجدول324[[#This Row],[عمود36]]="مقبول","ناجح بتقدير مقبول"&" "&AX16,IF(COUNTBLANK($AM16:$AV16)=10,الجدول324[[#This Row],[عمود36]],"يحتاج إلى عناية في : "&textjoin(" و ",$AM16:$AV16)))))) -> يحتاج إلى عناية في : التاريخ و تقنية المعلومات و الفلسفة | AP16: التاريخ | AR16: تقنية المعلومات | AT16: الفلسفة | AW16: FALSE | AY16: 34
B17: =IF(C17<>"",SUBTOTAL(3,$C$10:C17),"") -> 8 | C17: الطالب رقم 8 | D17: 708 | E17: 77 | F17: 75 | G17: 152 | H17: 44 | I17: 56 | J17: 100 | K17: 28 | L17: 30 | M17: 58 | N17: 30 | O17: 27 | P17: 57 | Q17: 18 | R17: 19 | S17: 37 | T17: 14 | U17: 12 | V17: 26 | W17: 12 | X17: 13 | Y17: 25 | Z17: 19 | AA17: 18 | AB17: 37 | AC17: 18 | AD17: 18 | AE17: 36 | AF17: 14 | AG17: 16 | AH17: 30 | AI17: 558 | AJ17: =IF(AW17=FALSE,"",الجدول324[[#This Row],[عمود34]]/670*100) -> 83.28358209 | AK17: =evaltion(الجدول324[[#This Row],[عمود35]]) -> جيد جدا | AL17: =IF(الجدول324[[#This Row],[عمود36]]="ممتاز", "ناجح بتقدير ممتاز"&" "&AX17,IF(الجدول324[[#This Row],[عمود36]]="جيد جدا","ناجح بتقدير جيد جدا"&" "&AX17,IF(الجدول324[[#This Row],[عمود36]]="جيد فقط","ناجح بتقدير جيد فقط"&" "&AX17,IF(الجدول324[[#This Row],[عمود36]]="مقبول","ناجح بتقدير مقبول"&" "&AX17,IF(COUNTBLANK($AM17:$AV17)=10,الجدول324[[#This Row],[عمود36]],"يحتاج إلى عناية في : "&textjoin(" و ",$AM17:$AV17)))))) -> ناجح بتقدير جيد جدا الترتيب السادس | AW17: TRUE | AX17: الترتيب السادس | AY17: 6
B18: =IF(C18<>"",SUBTOTAL(3,$C$10:C18),"") -> 9 | C18: الطالب رقم 9 | D18: 709 | E18: 79 | F18: 57 | G18: 136 | H18: 42 | I18: 52 | J18: 94 | K18: 22 | L18: 23 | M18: 45 | N18: 23 | O18: 16 | P18: 39 | Q18: 15 | R18: 18 | S18: 33 | T18: 11 | U18: 4 | V18: 15 | W18: 12 | X18: 8 | Y18: 20 | Z18: 14 | AA18: 13 | AB18: 27 | AC18: 15 | AD18: 14 | AE18: 29 | AF18: 16 | AG18: 16 | AH18: 32 | AI18: 470 | AJ18: =IF(AW18=FALSE,"",الجدول324[[#This Row],[عمود34]]/670*100) ->  | AK18: =evaltion(الجدول324[[#This Row],[عمود35]]) -> 0 | AL18: =IF(الجدول324[[#This Row],[عمود36]]="ممتاز", "ناجح بتقدير ممتاز"&" "&AX18,IF(الجدول324[[#This Row],[عمود36]]="جيد جدا","ناجح بتقدير جيد جدا"&" "&AX18,IF(الجدول324[[#This Row],[عمود36]]="جيد فقط","ناجح بتقدير جيد فقط"&" "&AX18,IF(الجدول324[[#This Row],[عمود36]]="مقبول","ناجح بتقدير مقبول"&" "&AX18,IF(COUNTBLANK($AM18:$AV18)=10,الجدول324[[#This Row],[عمود36]],"يحتاج إلى عناية في : "&textjoin(" و ",$AM18:$AV18)))))) -> يحتاج إلى عناية في : تقنية المعلومات | AR18: تقنية المعلومات | AW18: FALSE | AY18: 26
B19: =IF(C19<>"",SUBTOTAL(3,$C$10:C19),"") -> 10 | C19: الطالب رقم 10 | D19: 710 | E19: 74 | F19: 68 | G19: 142 | H19: 36 | I19: 58 | J19: 94 | K19: 21 | L19: 14 | M19: 35 | N19: 19 | O19: 8 | P19: 27 | Q19: 13 | R19: 15 | S19: 28 | T19: 11 | U19: 8 | V19: 19 | W19: 12 | X19: 8 | Y19: 20 | Z19: 15 | AA19: 18 | AB19: 33 | AC19: 16 | AD19: 10 | AE19: 26 | AF19: 12 | AG19: 16 | AH19: 28 | AI19: 452 | AJ19: =IF(AW19=FALSE,"",الجدول324[[#This Row],[عمود34]]/670*100) ->  | AK19: =evaltion(الجدول324[[#This Row],[عمود35]]) -> 0 | AL19: =IF(الجدول324[[#This Row],[عمود36]]="ممتاز", "ناجح بتقدير ممتاز"&" "&AX19,IF(الجدول324[[#This Row],[عمود36]]="جيد جدا","ناجح بتقدير جيد جدا"&" "&AX19,IF(الجدول324[[#This Row],[عمود36]]="جيد فقط","ناجح بتقدير جيد فقط"&" "&AX19,IF(الجدول324[[#This Row],[عمود36]]="مقبول","ناجح بتقدير مقبول"&" "&AX19,IF(COUNTBLANK($AM19:$AV19)=10,الجدول324[[#This Row],[عمود36]],"يحتاج إلى عناية في : "&textjoin(" و ",$AM19:$AV19)))))) -> يحتاج إلى عناية في : التاريخ و تقنية المعلومات | AP19: التاريخ | AR19: تقنية المعلومات | AW19: FALSE | AY19: 29
B20: =IF(C20<>"",SUBTOTAL(3,$C$10:C20),"") -> 11 | C20: الطالب رقم 11 | D20: 711 | E20: 83 | F20: 74 | G20: 157 | H20: 45 | I20: 60 | J20: 105 | K20: 26 | L20: 27 | M20: 53 | N20: 27 | O20: 18 | P20: 45 | Q20: 18 | R20: 16 | S20: 34 | T20: 14 | U20: 12 | V20: 26 | W20: 15 | X20: 12 | Y20: 27 | Z20: 18 | AA20: 19 | AB20: 37 | AC20: 18 | AD20: 17 | AE20: 35 | AF20: 19 | AG20: 11 | AH20: 30 | AI20: 549 | AJ20: =IF(AW20=FALSE,"",الجدول324[[#This Row],[عمود34]]/670*100) -> 81.94029851 | AK20: =evaltion(الجدول324[[#This Row],[عمود35]]) -> جيد جدا | AL20: =IF(الجدول324[[#This Row],[عمود36]]="ممتاز", "ناجح بتقدير ممتاز"&" "&AX20,IF(الجدول324[[#This Row],[عمود36]]="جيد جدا","ناجح بتقدير جيد جدا"&" "&AX20,IF(الجدول324[[#This Row],[عمود36]]="جيد فقط","ناجح بتقدير جيد فقط"&" "&AX20,IF(الجدول324[[#This Row],[عمود36]]="مقبول","ناجح بتقدير مقبول"&" "&AX20,IF(COUNTBLANK($AM20:$AV20)=10,الجدول324[[#This Row],[عمود36]],"يحتاج إلى عناية في : "&textjoin(" و ",$AM20:$AV20)))))) -> ناجح بتقدير جيد جدا | AW20: TRUE | AY20: 11
B21: =IF(C21<>"",SUBTOTAL(3,$C$10:C21),"") -> 12 | C21: الطالب رقم 12 | D21: 712 | E21: 80 | F21: 77 | G21: 157 | H21: 54 | I21: 56 | J21: 110 | K21: 27 | L21: 28 | M21: 55 | N21: 27 | O21: 26 | P21: 53 | Q21: 18 | R21: 19 | S21: 37 | T21: 15 | U21: 13 | V21: 28 | W21: 16 | X21: 11 | Y21: 27 | Z21: 19 | AA21: 19 | AB21: 38 | AC21: 17 | AD21: 18 | AE21: 35 | AF21: 19 | AG21: 19 | AH21: 38 | AI21: 578 | AJ21: =IF(AW21=FALSE,"",الجدول324[[#This Row],[عمود34]]/670*100) -> 86.26865672 | AK21: =evaltion(الجدول324[[#This Row],[عمود35]]) -> ممتاز | AL21: =IF(الجدول324[[#This Row],[عمود36]]="ممتاز", "ناجح بتقدير ممتاز"&" "&AX21,IF(الجدول324[[#This Row],[عمود36]]="جيد جدا","ناجح بتقدير جيد جدا"&" "&AX21,IF(الجدول324[[#This Row],[عمود36]]="جيد فقط","ناجح بتقدير جيد فقط"&" "&AX21,IF(الجدول324[[#This Row],[عمود36]]="مقبول","ناجح بتقدير مقبول"&" "&AX21,IF(COUNTBLANK($AM21:$AV21)=10,الجدول324[[#This Row],[عمود36]],"يحتاج إلى عناية في : "&textjoin(" و ",$AM21:$AV21)))))) -> ناجح بتقدير ممتاز الترتيب الرابع | AW21: TRUE | AX21: الترتيب الرابع | AY21: 4
B22: =IF(C22<>"",SUBTOTAL(3,$C$10:C22),"") -> 13 | C22: الطالب رقم 13 | D22: 713 | E22: 76 | F22: 60 | G22: 136 | H22: 47 | I22: 48 | J22: 95 | K22: 21 | L22: 24 | M22: 45 | N22: 26 | O22: 19 | P22: 45 | Q22: 16 | R22: 16 | S22: 32 | T22: 12 | U22: 11 | V22: 23 | W22: 10 | X22: 10 | Y22: 20 | Z22: 14 | AA22: 9 | AB22: 23 | AC22: 17 | AD22: 13 | AE22: 30 | AF22: 19 | AG22: 12 | AH22: 31 | AI22: 480 | AJ22: =IF(AW22=FALSE,"",الجدول324[[#This Row],[عمود34]]/670*100) -> 71.64179104 | AK22: =evaltion(الجدول324[[#This Row],[عمود35]]) -> جيد فقط | AL22: =IF(الجدول324[[#This Row],[عمود36]]="ممتاز", "ناجح بتقدير ممتاز"&" "&AX22,IF(الجدول324[[#This Row],[عمود36]]="جيد جدا","ناجح بتقدير جيد جدا"&" "&AX22,IF(الجدول324[[#This Row],[عمود36]]="جيد فقط","ناجح بتقدير جيد فقط"&" "&AX22,IF(الجدول324[[#This Row],[عمود36]]="مقبول","ناجح بتقدير مقبول"&" "&AX22,IF(COUNTBLANK($AM22:$AV22)=10,الجدول324[[#This Row],[عمود36]],"يحتاج إلى عناية في : "&textjoin(" و ",$AM22:$AV22)))))) -> ناجح بتقدير جيد فقط | AW22: TRUE | AY22: 24
B23: =IF(C23<>"",SUBTOTAL(3,$C$10:C23),"") -> 14 | C23: الطالب رقم 14 | D23: 714 | E23: 80 | F23: 71 | G23: 151 | H23: 49 | I23: 58 | J23: 107 | K23: 25 | L23: 24 | M23: 49 | N23: 30 | O23: 24 | P23: 54 | Q23: 16 | R23: 19 | S23: 35 | T23: 16 | U23: 8 | V23: 24 | W23: 14 | X23: 14 | Y23: 28 | Z23: 12 | AA23: 19 | AB23: 31 | AC23: 18 | AD23: 18 | AE23: 36 | AF23: 18 | AG23: 18 | AH23: 36 | AI23: 551 | AJ23: =IF(AW23=FALSE,"",الجدول324[[#This Row],[عمود34]]/670*100) -> 82.23880597 | AK23: =evaltion(الجدول324[[#This Row],[عمود35]]) -> جيد جدا | AL23: =IF(الجدول324[[#This Row],[عمود36]]="ممتاز", "ناجح بتقدير ممتاز"&" "&AX23,IF(الجدول324[[#This Row],[عمود36]]="جيد جدا","ناجح بتقدير جيد جدا"&" "&AX23,IF(الجدول324[[#This Row],[عمود36]]="جيد فقط","ناجح بتقدير جيد فقط"&" "&AX23,IF(الجدول324[[#This Row],[عمود36]]="مقبول","ناجح بتقدير مقبول"&" "&AX23,IF(COUNTBLANK($AM23:$AV23)=10,الجدول324[[#This Row],[عمود36]],"يحتاج إلى عناية في : "&textjoin(" و ",$AM23:$AV23)))))) -> ناجح بتقدير جيد جدا الترتيب التاسع | AW23: TRUE | AX23: الترتيب التاسع | AY23: 9
B24: =IF(C24<>"",SUBTOTAL(3,$C$10:C24),"") -> 15 | C24: الطالب رقم 15 | D24: 715 | E24: 72 | F24: 73 | G24: 145 | H24: 52 | I24: 58 | J24: 110 | K24: 26 | L24: 21 | M24: 47 | N24: 29 | O24: 19 | P24: 48 | Q24: 18 | R24: 18 | S24: 36 | T24: 14 | U24: 13 | V24: 27 | W24: 18 | X24: 12 | Y24: 30 | Z24: 16 | AA24: 19 | AB24: 35 | AC24: 19 | AD24: 19 | AE24: 38 | AF24: 18 | AG24: 17 | AH24: 35 | AI24: 551 | AJ24: =IF(AW24=FALSE,"",الجدول324[[#This Row],[عمود34]]/670*100) -> 82.23880597 | AK24: =evaltion(الجدول324[[#This Row],[عمود35]]) -> جيد جدا | AL24: =IF(الجدول324[[#This Row],[عمود36]]="ممتاز", "ناجح بتقدير ممتاز"&" "&AX24,IF(الجدول324[[#This Row],[عمود36]]="جيد جدا","ناجح بتقدير جيد جدا"&" "&AX24,IF(الجدول324[[#This Row],[عمود36]]="جيد فقط","ناجح بتقدير جيد فقط"&" "&AX24,IF(الجدول324[[#This Row],[عمود36]]="مقبول","ناجح بتقدير مقبول"&" "&AX24,IF(COUNTBLANK($AM24:$AV24)=10,الجدول324[[#This Row],[عمود36]],"يحتاج إلى عناية في : "&textjoin(" و ",$AM24:$AV24)))))) -> ناجح بتقدير جيد جدا الترتيب التاسع | AW24: TRUE | AX24: الترتيب التاسع | AY24: 9
B25: =IF(C25<>"",SUBTOTAL(3,$C$10:C25),"") -> 16 | C25: الطالب رقم 16 | D25: 716 | E25: 90 | F25: 89 | G25: 179 | H25: 51 | I25: 58 | J25: 109 | K25: 29 | L25: 29 | M25: 58 | N25: 29 | O25: 25 | P25: 54 | Q25: 19 | R25: 20 | S25: 39 | T25: 15 | U25: 9 | V25: 24 | W25: 15 | X25: 14 | Y25: 29 | Z25: 19 | AA25: 15 | AB25: 34 | AC25: 19 | AD25: 19 | AE25: 38 | AF25: 17 | AG25: 20 | AH25: 37 | AI25: 601 | AJ25: =IF(AW25=FALSE,"",الجدول324[[#This Row],[عمود34]]/670*100) -> 89.70149254 | AK25: =evaltion(الجدول324[[#This Row],[عمود35]]) -> ممتاز | AL25: =IF(الجدول324[[#This Row],[عمود36]]="ممتاز", "ناجح بتقدير ممتاز"&" "&AX25,IF(الجدول324[[#This Row],[عمود36]]="جيد جدا","ناجح بتقدير جيد جدا"&" "&AX25,IF(الجدول324[[#This Row],[عمود36]]="جيد فقط","ناجح بتقدير جيد فقط"&" "&AX25,IF(الجدول324[[#This Row],[عمود36]]="مقبول","ناجح بتقدير مقبول"&" "&AX25,IF(COUNTBLANK($AM25:$AV25)=10,الجدول324[[#This Row],[عمود36]],"يحتاج إلى عناية في : "&textjoin(" و ",$AM25:$AV25)))))) -> ناجح بتقدير ممتاز الترتيب الثاني | AW25: TRUE | AX25: الترتيب الثاني | AY25: 2
B26: =IF(C26<>"",SUBTOTAL(3,$C$10:C26),"") -> 17 | C26: الطالب رقم 17 | D26: 717 | E26: 85 | F26: 85 | G26: 170 | H26: 58 | I26: 60 | J26: 118 | K26: 30 | L26: 30 | M26: 60 | N26: 29 | O26: 27 | P26: 56 | Q26: 20 | R26: 20 | S26: 40 | T26: 16 | U26: 16 | V26: 32 | W26: 14 | X26: 14 | Y26: 28 | Z26: 20 | AA26: 20 | AB26: 40 | AC26: 19 | AD26: 20 | AE26: 39 | AF26: 20 | AG26: 19 | AH26: 39 | AI26: 622 | AJ26: =IF(AW26=FALSE,"",الجدول324[[#This Row],[عمود34]]/670*100) -> 92.8358209 | AK26: =evaltion(الجدول324[[#This Row],[عمود35]]) -> ممتاز | AL26: =IF(الجدول324[[#This Row],[عمود36]]="ممتاز", "ناجح بتقدير ممتاز"&" "&AX26,IF(الجدول324[[#This Row],[عمود36]]="جيد جدا","ناجح بتقدير جيد جدا"&" "&AX26,IF(الجدول324[[#This Row],[عمود36]]="جيد فقط","ناجح بتقدير جيد فقط"&" "&AX26,IF(الجدول324[[#This Row],[عمود36]]="مقبول","ناجح بتقدير مقبول"&" "&AX26,IF(COUNTBLANK($AM26:$AV26)=10,الجدول324[[#This Row],[عمود36]],"يحتاج إلى عناية في : "&textjoin(" و ",$AM26:$AV26)))))) -> ناجح بتقدير ممتاز الترتيب الأول | AW26: TRUE | AX26: الترتيب الأول | AY26: 1
B27: =IF(C27<>"",SUBTOTAL(3,$C$10:C27),"") -> 18 | C27: الطالب رقم 18 | D27: 718 | E27: 77 | F27: 76 | G27: 153 | H27: 58 | I27: 60 | J27: 118 | K27: 20 | L27: 21 | M27: 41 | N27: 27 | O27: 14 | P27: 41 | Q27: 17 | R27: 20 | S27: 37 | T27: 14 | U27: 12 | V27: 26 | W27: 13 | X27: 11 | Y27: 24 | Z27: 17 | AA27: 16 | AB27: 33 | AC27: 17 | AD27: 13 | AE27: 30 | AF27: 12 | AG27: 13 | AH27: 25 | AI27: 528 | AJ27: =IF(AW27=FALSE,"",الجدول324[[#This Row],[عمود34]]/670*100) -> 78.80597015 | AK27: =evaltion(الجدول324[[#This Row],[عمود35]]) -> جيد جدا | AL27: =IF(الجدول324[[#This Row],[عمود36]]="ممتاز", "ناجح بتقدير ممتاز"&" "&AX27,IF(الجدول324[[#This Row],[عمود36]]="جيد جدا","ناجح بتقدير جيد جدا"&" "&AX27,IF(الجدول324[[#This Row],[عمود36]]="جيد فقط","ناجح بتقدير جيد فقط"&" "&AX27,IF(الجدول324[[#This Row],[عمود36]]="مقبول","ناجح بتقدير مقبول"&" "&AX27,IF(COUNTBLANK($AM27:$AV27)=10,الجدول324[[#This Row],[عمود36]],"يحتاج إلى عناية في : "&textjoin(" و ",$AM27:$AV27)))))) -> ناجح بتقدير جيد جدا | AW27: TRUE | AY27: 15
B28: =IF(C28<>"",SUBTOTAL(3,$C$10:C28),"") -> 19 | C28: الطالب رقم 19 | D28: 719 | E28: 62 | F28: 69 | G28: 131 | H28: 51 | I28: 56 | J28: 107 | K28: 22 | L28: 20 | M28: 42 | N28: 26 | O28: 20 | P28: 46 | Q28: 16 | R28: 20 | S28: 36 | T28: 11 | U28: 9 | V28: 20 | W28: 14 | X28: 12 | Y28: 26 | Z28: 17 | AA28: 17 | AB28: 34 | AC28: 15 | AD28: 19 | AE28: 34 | AF28: 13 | AG28: 12 | AH28: 25 | AI28: 501 | AJ28: =IF(AW28=FALSE,"",الجدول324[[#This Row],[عمود34]]/670*100) -> 74.7761194 | AK28: =evaltion(الجدول324[[#This Row],[عمود35]]) -> جيد فقط | AL28: =IF(الجدول324[[#This Row],[عمود36]]="ممتاز", "ناجح بتقدير ممتاز"&" "&AX28,IF(الجدول324[[#This Row],[عمود36]]="جيد جدا","ناجح بتقدير جيد جدا"&" "&AX28,IF(الجدول324[[#This Row],[عمود36]]="جيد فقط","ناجح بتقدير جيد فقط"&" "&AX28,IF(الجدول324[[#This Row],[عمود36]]="مقبول","ناجح بتقدير مقبول"&" "&AX28,IF(COUNTBLANK($AM28:$AV28)=10,الجدول324[[#This Row],[عمود36]],"يحتاج إلى عناية في : "&textjoin(" و ",$AM28:$AV28)))))) -> ناجح بتقدير جيد فقط | AW28: TRUE | AY28: 20
B29: =IF(C29<>"",SUBTOTAL(3,$C$10:C29),"") -> 20 | C29: الطالب رقم 20 | D29: 720 | E29: 83 | F29: 67 | G29: 150 | H29: 56 | I29: 60 | J29: 116 | K29: 26 | L29: 27 | M29: 53 | N29: 29 | O29: 15 | P29: 44 | Q29: 20 | R29: 20 | S29: 40 | T29: 13 | U29: 10 | V29: 23 | W29: 12 | X29: 11 | Y29: 23 | Z29: 19 | AA29: 17 | AB29: 36 | AC29: 19 | AD29: 18 | AE29: 37 | AF29: 16 | AG29: 15 | AH29: 31 | AI29: 553 | AJ29: =IF(AW29=FALSE,"",الجدول324[[#This Row],[عمود34]]/670*100) -> 82.53731343 | AK29: =evaltion(الجدول324[[#This Row],[عمود35]]) -> جيد جدا | AL29: =IF(الجدول324[[#This Row],[عمود36]]="ممتاز", "ناجح بتقدير ممتاز"&" "&AX29,IF(الجدول324[[#This Row],[عمود36]]="جيد جدا","ناجح بتقدير جيد جدا"&" "&AX29,IF(الجدول324[[#This Row],[عمود36]]="جيد فقط","ناجح بتقدير جيد فقط"&" "&AX29,IF(الجدول324[[#This Row],[عمود36]]="مقبول","ناجح بتقدير مقبول"&" "&AX29,IF(COUNTBLANK($AM29:$AV29)=10,الجدول324[[#This Row],[عمود36]],"يحتاج إلى عناية في : "&textjoin(" و ",$AM29:$AV29)))))) -> ناجح بتقدير جيد جدا الترتيب السابع | AW29: TRUE | AX29: الترتيب السابع | AY29: 7
B30: =IF(C30<>"",SUBTOTAL(3,$C$10:C30),"") -> 21 | C30: الطالب رقم 21 | D30: 721 | E30: 79 | F30: 72 | G30: 151 | H30: 39 | I30: 54 | J30: 93 | K30: 25 | L30: 24 | M30: 49 | N30: 27 | O30: 27 | P30: 54 | Q30: 18 | R30: 20 | S30: 38 | T30: 12 | U30: 10 | V30: 22 | W30: 12 | X30: 11 | Y30: 23 | Z30: 12 | AA30: 8 | AB30: 20 | AC30: 18 | AD30: 18 | AE30: 36 | AF30: 16 | AG30: 17 | AH30: 33 | AI30: 519 | AJ30: =IF(AW30=FALSE,"",الجدول324[[#This Row],[عمود34]]/670*100) -> 77.46268657 | AK30: =evaltion(الجدول324[[#This Row],[عمود35]]) -> جيد جدا | AL30: =IF(الجدول324[[#This Row],[عمود36]]="ممتاز", "ناجح بتقدير ممتاز"&" "&AX30,IF(الجدول324[[#This Row],[عمود36]]="جيد جدا","ناجح بتقدير جيد جدا"&" "&AX30,IF(الجدول324[[#This Row],[عمود36]]="جيد فقط","ناجح بتقدير جيد فقط"&" "&AX30,IF(الجدول324[[#This Row],[عمود36]]="مقبول","ناجح بتقدير مقبول"&" "&AX30,IF(COUNTBLANK($AM30:$AV30)=10,الجدول324[[#This Row],[عمود36]],"يحتاج إلى عناية في : "&textjoin(" و ",$AM30:$AV30)))))) -> ناجح بتقدير جيد جدا | AW30: TRUE | AY30: 18
B31: =IF(C31<>"",SUBTOTAL(3,$C$10:C31),"") -> 22 | C31: الطالب رقم 22 | D31: 722 | E31: 72 | F31: 62 | G31: 134 | H31: 46 | I31: 48 | J31: 94 | K31: 20 | L31: 20 | M31: 40 | N31: 28 | O31: 13 | P31: 41 | Q31: 14 | R31: 14 | S31: 28 | T31: 11 | U31: 10 | V31: 21 | W31: 11 | X31: 10 | Y31: 21 | Z31: 11 | AA31: 11 | AB31: 22 | AC31: 15 | AD31: 15 | AE31: 30 | AF31: 12 | AG31: 8 | AH31: 20 | AI31: 451 | AJ31: =IF(AW31=FALSE,"",الجدول324[[#This Row],[عمود34]]/670*100) -> 67.31343284 | AK31: =evaltion(الجدول324[[#This Row],[عمود35]]) -> جيد فقط | AL31: =IF(الجدول324[[#This Row],[عمود36]]="ممتاز", "ناجح بتقدير ممتاز"&" "&AX31,IF(الجدول324[[#This Row],[عمود36]]="جيد جدا","ناجح بتقدير جيد جدا"&" "&AX31,IF(الجدول324[[#This Row],[عمود36]]="جيد فقط","ناجح بتقدير جيد فقط"&" "&AX31,IF(الجدول324[[#This Row],[عمود36]]="مقبول","ناجح بتقدير مقبول"&" "&AX31,IF(COUNTBLANK($AM31:$AV31)=10,الجدول324[[#This Row],[عمود36]],"يحتاج إلى عناية في : "&textjoin(" و ",$AM31:$AV31)))))) -> ناجح بتقدير جيد فقط | AW31: TRUE | AY31: 30
B32: =IF(C32<>"",SUBTOTAL(3,$C$10:C32),"") -> 23 | C32: الطالب رقم 23 | D32: 723 | E32: 76 | F32: 69 | G32: 145 | H32: 47 | I32: 54 | J32: 101 | K32: 21 | L32: 28 | M32: 49 | N32: 24 | O32: 18 | P32: 42 | Q32: 18 | R32: 17 | S32: 35 | T32: 11 | U32: 12 | V32: 23 | W32: 13 | X32: 11 | Y32: 24 | Z32: 18 | AA32: 14 | AB32: 32 | AC32: 18 | AD32: 20 | AE32: 38 | AF32: 14 | AG32: 17 | AH32: 31 | AI32: 520 | AJ32: =IF(AW32=FALSE,"",الجدول324[[#This Row],[عمود34]]/670*100) -> 77.6119403 | AK32: =evaltion(الجدول324[[#This Row],[عمود35]]) -> جيد جدا | AL32: =IF(الجدول324[[#This Row],[عمود36]]="ممتاز", "ناجح بتقدير ممتاز"&" "&AX32,IF(الجدول324[[#This Row],[عمود36]]="جيد جدا","ناجح بتقدير جيد جدا"&" "&AX32,IF(الجدول324[[#This Row],[عمود36]]="جيد فقط","ناجح بتقدير جيد فقط"&" "&AX32,IF(الجدول324[[#This Row],[عمود36]]="مقبول","ناجح بتقدير مقبول"&" "&AX32,IF(COUNTBLANK($AM32:$AV32)=10,الجدول324[[#This Row],[عمود36]],"يحتاج إلى عناية في : "&textjoin(" و ",$AM32:$AV32)))))) -> ناجح بتقدير جيد جدا | AW32: TRUE | AY32: 17
B33: =IF(C33<>"",SUBTOTAL(3,$C$10:C33),"") -> 24 | C33: الطالب رقم 24 | D33: 724 | E33: 75 | F33: 62 | G33: 137 | H33: 60 | I33: 60 | J33: 120 | K33: 27 | L33: 21 | M33: 48 | N33: 28 | O33: 20 | P33: 48 | Q33: 15 | R33: 19 | S33: 34 | T33: 13 | U33: 11 | V33: 24 | W33: 12 | X33: 9 | Y33: 21 | Z33: 12 | AA33: 16 | AB33: 28 | AC33: 17 | AD33: 18 | AE33: 35 | AF33: 14 | AG33: 20 | AH33: 34 | AI33: 529 | AJ33: =IF(AW33=FALSE,"",الجدول324[[#This Row],[عمود34]]/670*100) -> 78.95522388 | AK33: =evaltion(الجدول324[[#This Row],[عمود35]]) -> جيد جدا | AL33: =IF(الجدول324[[#This Row],[عمود36]]="ممتاز", "ناجح بتقدير ممتاز"&" "&AX33,IF(الجدول324[[#This Row],[عمود36]]="جيد جدا","ناجح بتقدير جيد جدا"&" "&AX33,IF(الجدول324[[#This Row],[عمود36]]="جيد فقط","ناجح بتقدير جيد فقط"&" "&AX33,IF(الجدول324[[#This Row],[عمود36]]="مقبول","ناجح بتقدير مقبول"&" "&AX33,IF(COUNTBLANK($AM33:$AV33)=10,الجدول324[[#This Row],[عمود36]],"يحتاج إلى عناية في : "&textjoin(" و ",$AM33:$AV33)))))) -> ناجح بتقدير جيد جدا | AW33: TRUE | AY33: 14
B34: =IF(C34<>"",SUBTOTAL(3,$C$10:C34),"") -> 25 | C34: الطالب رقم 25 | D34: 725 | E34: 75 | F34: 57 | G34: 132 | H34: 48 | I34: 54 | J34: 102 | K34: 26 | L34: 25 | M34: 51 | N34: 23 | O34: 8 | P34: 31 | Q34: 17 | R34: 17 | S34: 34 | T34: 14 | U34: 7 | V34: 21 | W34: 12 | X34: 8 | Y34: 20 | Z34: 17 | AA34: 13 | AB34: 30 | AC34: 19 | AD34: 16 | AE34: 35 | AF34: 20 | AG34: 12 | AH34: 32 | AI34: 488 | AJ34: =IF(AW34=FALSE,"",الجدول324[[#This Row],[عمود34]]/670*100) -> 72.8358209 | AK34: =evaltion(الجدول324[[#This Row],[عمود35]]) -> جيد فقط | AL34: =IF(الجدول324[[#This Row],[عمود36]]="ممتاز", "ناجح بتقدير ممتاز"&" "&AX34,IF(الجدول324[[#This Row],[عمود36]]="جيد جدا","ناجح بتقدير جيد جدا"&" "&AX34,IF(الجدول324[[#This Row],[عمود36]]="جيد فقط","ناجح بتقدير جيد فقط"&" "&AX34,IF(الجدول324[[#This Row],[عمود36]]="مقبول","ناجح بتقدير مقبول"&" "&AX34,IF(COUNTBLANK($AM34:$AV34)=10,الجدول324[[#This Row],[عمود36]],"يحتاج إلى عناية في : "&textjoin(" و ",$AM34:$AV34)))))) -> ناجح بتقدير جيد فقط | AW34: TRUE | AY34: 21
B35: =IF(C35<>"",SUBTOTAL(3,$C$10:C35),"") -> 26 | C35: الطالب رقم 26 | D35: 726 | E35: 84 | F35: 78 | G35: 162 | H35: 56 | I35: 58 | J35: 114 | K35: 29 | L35: 26 | M35: 55 | N35: 30 | O35: 25 | P35: 55 | Q35: 18 | R35: 19 | S35: 37 | T35: 11 | U35: 10 | V35: 21 | W35: 18 | X35: 9 | Y35: 27 | Z35: 19 | AA35: 13 | AB35: 32 | AC35: 19 | AD35: 19 | AE35: 38 | AF35: 19 | AG35: 19 | AH35: 38 | AI35: 579 | AJ35: =IF(AW35=FALSE,"",الجدول324[[#This Row],[عمود34]]/670*100) -> 86.41791045 | AK35: =evaltion(الجدول324[[#This Row],[عمود35]]) -> ممتاز | AL35: =IF(الجدول324[[#This Row],[عمود36]]="ممتاز", "ناجح بتقدير ممتاز"&" "&AX35,IF(الجدول324[[#This Row],[عمود36]]="جيد جدا","ناجح بتقدير جيد جدا"&" "&AX35,IF(الجدول324[[#This Row],[عمود36]]="جيد فقط","ناجح بتقدير جيد فقط"&" "&AX35,IF(الجدول324[[#This Row],[عمود36]]="مقبول","ناجح بتقدير مقبول"&" "&AX35,IF(COUNTBLANK($AM35:$AV35)=10,الجدول324[[#This Row],[عمود36]],"يحتاج إلى عناية في : "&textjoin(" و ",$AM35:$AV35)))))) -> ناجح بتقدير ممتاز الترتيب الثالث | AW35: TRUE | AX35: الترتيب الثالث | AY35: 3
B36: =IF(C36<>"",SUBTOTAL(3,$C$10:C36),"") -> 27 | C36: الطالب رقم 27 | D36: 727 | E36: 61 | F36: 57 | G36: 118 | H36: 35 | I36: 41 | J36: 76 | K36: 17 | L36: 17 | M36: 34 | N36: 20 | O36: 7 | P36: 27 | Q36: 12 | R36: 14 | S36: 26 | T36: 10 | U36: 5 | V36: 15 | W36: 15 | X36: 6 | Y36: 21 | Z36: 9 | AA36: 8 | AB36: 17 | AC36: 13 | AD36: 14 | AE36: 27 | AF36: 15 | AG36: 13 | AH36: 28 | AI36: 389 | AJ36: =IF(AW36=FALSE,"",الجدول324[[#This Row],[عمود34]]/670*100) ->  | AK36: =evaltion(الجدول324[[#This Row],[عمود35]]) -> 0 | AL36: =IF(الجدول324[[#This Row],[عمود36]]="ممتاز", "ناجح بتقدير ممتاز"&" "&AX36,IF(الجدول324[[#This Row],[عمود36]]="جيد جدا","ناجح بتقدير جيد جدا"&" "&AX36,IF(الجدول324[[#This Row],[عمود36]]="جيد فقط","ناجح بتقدير جيد فقط"&" "&AX36,IF(الجدول324[[#This Row],[عمود36]]="مقبول","ناجح بتقدير مقبول"&" "&AX36,IF(COUNTBLANK($AM36:$AV36)=10,الجدول324[[#This Row],[عمود36]],"يحتاج إلى عناية في : "&textjoin(" و ",$AM36:$AV36)))))) -> يحتاج إلى عناية في : التاريخ و تقنية المعلومات و الفلسفة | AP36: التاريخ | AR36: تقنية المعلومات | AT36: الفلسفة | AW36: FALSE | AY36: 35
B37: =IF(C37<>"",SUBTOTAL(3,$C$10:C37),"") -> 28 | C37: الطالب رقم 28 | D37: 728 | E37: 81 | F37: 58 | G37: 139 | H37: 50 | I37: 38 | J37: 88 | K37: 25 | L37: 19 | M37: 44 | N37: 29 | O37: 13 | P37: 42 | Q37: 18 | R37: 15 | S37: 33 | T37: 11 | U37: 11 | V37: 22 | W37: 15 | X37: 7 | Y37: 22 | Z37: 18 | AA37: 13 | AB37: 31 | AC37: 18 | AD37: 17 | AE37: 35 | AF37: 16 | AG37: 12 | AH37: 28 | AI37: 484 | AJ37: =IF(AW37=FALSE,"",الجدول324[[#This Row],[عمود34]]/670*100) -> 72.23880597 | AK37: =evaltion(الجدول324[[#This Row],[عمود35]]) -> جيد فقط | AL37: =IF(الجدول324[[#This Row],[عمود36]]="ممتاز", "ناجح بتقدير ممتاز"&" "&AX37,IF(الجدول324[[#This Row],[عمود36]]="جيد جدا","ناجح بتقدير جيد جدا"&" "&AX37,IF(الجدول324[[#This Row],[عمود36]]="جيد فقط","ناجح بتقدير جيد فقط"&" "&AX37,IF(الجدول324[[#This Row],[عمود36]]="مقبول","ناجح بتقدير مقبول"&" "&AX37,IF(COUNTBLANK($AM37:$AV37)=10,الجدول324[[#This Row],[عمود36]],"يحتاج إلى عناية في : "&textjoin(" و ",$AM37:$AV37)))))) -> ناجح بتقدير جيد فقط | AW37: TRUE | AY37: 23
B38: =IF(C38<>"",SUBTOTAL(3,$C$10:C38),"") -> 29 | C38: الطالب رقم 29 | D38: 729 | E38: 79 | F38: 73 | G38: 152 | H38: 52 | I38: 58 | J38: 110 | K38: 29 | L38: 22 | M38: 51 | N38: 30 | O38: 25 | P38: 55 | Q38: 19 | R38: 16 | S38: 35 | T38: 12 | U38: 13 | V38: 25 | W38: 18 | X38: 10 | Y38: 28 | Z38: 18 | AA38: 10 | AB38: 28 | AC38: 16 | AD38: 17 | AE38: 33 | AF38: 19 | AG38: 17 | AH38: 36 | AI38: 553 | AJ38: =IF(AW38=FALSE,"",الجدول324[[#This Row],[عمود34]]/670*100) -> 82.53731343 | AK38: =evaltion(الجدول324[[#This Row],[عمود35]]) -> جيد جدا | AL38: =IF(الجدول324[[#This Row],[عمود36]]="ممتاز", "ناجح بتقدير ممتاز"&" "&AX38,IF(الجدول324[[#This Row],[عمود36]]="جيد جدا","ناجح بتقدير جيد جدا"&" "&AX38,IF(الجدول324[[#This Row],[عمود36]]="جيد فقط","ناجح بتقدير جيد فقط"&" "&AX38,IF(الجدول324[[#This Row],[عمود36]]="مقبول","ناجح بتقدير مقبول"&" "&AX38,IF(COUNTBLANK($AM38:$AV38)=10,الجدول324[[#This Row],[عمود36]],"يحتاج إلى عناية في : "&textjoin(" و ",$AM38:$AV38)))))) -> ناجح بتقدير جيد جدا الترتيب السابع | AW38: TRUE | AX38: الترتيب السابع | AY38: 7
B39: =IF(C39<>"",SUBTOTAL(3,$C$10:C39),"") -> 30 | C39: الطالب رقم 30 | D39: 730 | E39: 86 | F39: 74 | G39: 160 | H39: 55 | I39: 54 | J39: 109 | K39: 24 | L39: 24 | M39: 48 | N39: 30 | O39: 17 | P39: 47 | Q39: 16 | R39: 13 | S39: 29 | T39: 14 | U39: 16 | V39: 30 | W39: 17 | X39: 14 | Y39: 31 | Z39: 16 | AA39: 13 | AB39: 29 | AC39: 18 | AD39: 19 | AE39: 37 | AF39: 18 | AG39: 11 | AH39: 29 | AI39: 549 | AJ39: =IF(AW39=FALSE,"",الجدول324[[#This Row],[عمود34]]/670*100) -> 81.94029851 | AK39: =evaltion(الجدول324[[#This Row],[عمود35]]) -> جيد جدا | AL39: =IF(الجدول324[[#This Row],[عمود36]]="ممتاز", "ناجح بتقدير ممتاز"&" "&AX39,IF(الجدول324[[#This Row],[عمود36]]="جيد جدا","ناجح بتقدير جيد جدا"&" "&AX39,IF(الجدول324[[#This Row],[عمود36]]="جيد فقط","ناجح بتقدير جيد فقط"&" "&AX39,IF(الجدول324[[#This Row],[عمود36]]="مقبول","ناجح بتقدير مقبول"&" "&AX39,IF(COUNTBLANK($AM39:$AV39)=10,الجدول324[[#This Row],[عمود36]],"يحتاج إلى عناية في : "&textjoin(" و ",$AM39:$AV39)))))) -> ناجح بتقدير جيد جدا | AW39: TRUE | AY39: 11
B40: =IF(C40<>"",SUBTOTAL(3,$C$10:C40),"") -> 31 | C40: الطالب رقم 31 | D40: 731 | E40: 76 | F40: 68 | G40: 144 | H40: 49 | I40: 54 | J40: 103 | K40: 28 | L40: 27 | M40: 55 | N40: 24 | O40: 20 | P40: 44 | Q40: 17 | R40: 14 | S40: 31 | T40: 12 | U40: 10 | V40: 22 | W40: 15 | X40: 14 | Y40: 29 | Z40: 13 | AA40: 13 | AB40: 26 | AC40: 19 | AD40: 18 | AE40: 37 | AF40: 19 | AG40: 13 | AH40: 32 | AI40: 523 | AJ40: =IF(AW40=FALSE,"",الجدول324[[#This Row],[عمود34]]/670*100) -> 78.05970149 | AK40: =evaltion(الجدول324[[#This Row],[عمود35]]) -> جيد جدا | AL40: =IF(الجدول324[[#This Row],[عمود36]]="ممتاز", "ناجح بتقدير ممتاز"&" "&AX40,IF(الجدول324[[#This Row],[عمود36]]="جيد جدا","ناجح بتقدير جيد جدا"&" "&AX40,IF(الجدول324[[#This Row],[عمود36]]="جيد فقط","ناجح بتقدير جيد فقط"&" "&AX40,IF(الجدول324[[#This Row],[عمود36]]="مقبول","ناجح بتقدير مقبول"&" "&AX40,IF(COUNTBLANK($AM40:$AV40)=10,الجدول324[[#This Row],[عمود36]],"يحتاج إلى عناية في : "&textjoin(" و ",$AM40:$AV40)))))) -> ناجح بتقدير جيد جدا | AW40: TRUE | AY40: 16
B41: =IF(C41<>"",SUBTOTAL(3,$C$10:C41),"") -> 32 | C41: الطالب رقم 32 | D41: 732 | E41: 67 | F41: 64 | G41: 131 | H41: 43 | I41: 50 | J41: 93 | K41: 20 | L41: 19 | M41: 39 | N41: 24 | O41: 18 | P41: 42 | Q41: 14 | R41: 12 | S41: 26 | T41: 11 | U41: 7 | V41: 18 | W41: 11 | X41: 9 | Y41: 20 | Z41: 12 | AA41: 4 | AB41: 16 | AC41: 15 | AD41: 17 | AE41: 32 | AF41: 11 | AG41: 11 | AH41: 22 | AI41: 439 | AJ41: =IF(AW41=FALSE,"",الجدول324[[#This Row],[عمود34]]/670*100) ->  | AK41: =evaltion(الجدول324[[#This Row],[عمود35]]) -> 0 | AL41: =IF(الجدول324[[#This Row],[عمود36]]="ممتاز", "ناجح بتقدير ممتاز"&" "&AX41,IF(الجدول324[[#This Row],[عمود36]]="جيد جدا","ناجح بتقدير جيد جدا"&" "&AX41,IF(الجدول324[[#This Row],[عمود36]]="جيد فقط","ناجح بتقدير جيد فقط"&" "&AX41,IF(الجدول324[[#This Row],[عمود36]]="مقبول","ناجح بتقدير مقبول"&" "&AX41,IF(COUNTBLANK($AM41:$AV41)=10,الجدول324[[#This Row],[عمود36]],"يحتاج إلى عناية في : "&textjoin(" و ",$AM41:$AV41)))))) -> يحتاج إلى عناية في : تقنية المعلومات و الفلسفة | AR41: تقنية المعلومات | AT41: الفلسفة | AW41: FALSE | AY41: 32
B42: =IF(C42<>"",SUBTOTAL(3,$C$10:C42),"") -> 33 | C42: الطالب رقم 33 | D42: 733 | E42: 82 | F42: 68 | G42: 150 | H42: 53 | I42: 58 | J42: 111 | K42: 25 | L42: 17 | M42: 42 | N42: 26 | O42: 9 | P42: 35 | Q42: 17 | R42: 15 | S42: 32 | T42: 13 | U42: 12 | V42: 25 | W42: 15 | X42: 11 | Y42: 26 | Z42: 14 | AA42: 11 | AB42: 25 | AC42: 19 | AD42: 12 | AE42: 31 | AF42: 18 | AG42: 16 | AH42: 34 | AI42: 511 | AJ42: =IF(AW42=FALSE,"",الجدول324[[#This Row],[عمود34]]/670*100) -> 76.26865672 | AK42: =evaltion(الجدول324[[#This Row],[عمود35]]) -> جيد جدا | AL42: =IF(الجدول324[[#This Row],[عمود36]]="ممتاز", "ناجح بتقدير ممتاز"&" "&AX42,IF(الجدول324[[#This Row],[عمود36]]="جيد جدا","ناجح بتقدير جيد جدا"&" "&AX42,IF(الجدول324[[#This Row],[عمود36]]="جيد فقط","ناجح بتقدير جيد فقط"&" "&AX42,IF(الجدول324[[#This Row],[عمود36]]="مقبول","ناجح بتقدير مقبول"&" "&AX42,IF(COUNTBLANK($AM42:$AV42)=10,الجدول324[[#This Row],[عمود36]],"يحتاج إلى عناية في : "&textjoin(" و ",$AM42:$AV42)))))) -> ناجح بتقدير جيد جدا | AW42: TRUE | AY42: 19
B43: =IF(C43<>"",SUBTOTAL(3,$C$10:C43),"") -> 34 | C43: الطالب رقم 34 | D43: 734 | E43: 72 | F43: 62 | G43: 134 | H43: 36 | I43: 48 | J43: 84 | K43: 25 | L43: 28 | M43: 53 | N43: 29 | O43: 18 | P43: 47 | Q43: 15 | R43: 18 | S43: 33 | T43: 12 | U43: 10 | V43: 22 | W43: 11 | X43: 10 | Y43: 21 | Z43: 16 | AA43: 15 | AB43: 31 | AC43: 17 | AD43: 16 | AE43: 33 | AF43: 17 | AG43: 13 | AH43: 30 | AI43: 488 | AJ43: =IF(AW43=FALSE,"",الجدول324[[#This Row],[عمود34]]/670*100) -> 72.8358209 | AK43: =evaltion(الجدول324[[#This Row],[عمود35]]) -> جيد فقط | AL43: =IF(الجدول324[[#This Row],[عمود36]]="ممتاز", "ناجح بتقدير ممتاز"&" "&AX43,IF(الجدول324[[#This Row],[عمود36]]="جيد جدا","ناجح بتقدير جيد جدا"&" "&AX43,IF(الجدول324[[#This Row],[عمود36]]="جيد فقط","ناجح بتقدير جيد فقط"&" "&AX43,IF(الجدول324[[#This Row],[عمود36]]="مقبول","ناجح بتقدير مقبول"&" "&AX43,IF(COUNTBLANK($AM43:$AV43)=10,الجدول324[[#This Row],[عمود36]],"يحتاج إلى عناية في : "&textjoin(" و ",$AM43:$AV43)))))) -> ناجح بتقدير جيد فقط | AW43: TRUE | AY43: 21
B44: =IF(C44<>"",SUBTOTAL(3,$C$10:C44),"") -> 35 | C44: الطالب رقم 35 | D44: 735 | E44: 78 | F44: 60 | G44: 138 | H44: 44 | I44: 54 | J44: 98 | K44: 21 | L44: 21 | M44: 42 | N44: 25 | O44: 24 | P44: 49 | Q44: 18 | R44: 11 | S44: 29 | T44: 11 | U44: 6 | V44: 17 | W44: 13 | X44: 7 | Y44: 20 | Z44: 13 | AA44: 14 | AB44: 27 | AC44: 17 | AD44: 18 | AE44: 35 | AF44: 16 | AG44: 9 | AH44: 25 | AI44: 480 | AJ44: =IF(AW44=FALSE,"",الجدول324[[#This Row],[عمود34]]/670*100) ->  | AK44: =evaltion(الجدول324[[#This Row],[عمود35]]) -> 0 | AL44: =IF(الجدول324[[#This Row],[عمود36]]="ممتاز", "ناجح بتقدير ممتاز"&" "&AX44,IF(الجدول324[[#This Row],[عمود36]]="جيد جدا","ناجح بتقدير جيد جدا"&" "&AX44,IF(الجدول324[[#This Row],[عمود36]]="جيد فقط","ناجح بتقدير جيد فقط"&" "&AX44,IF(الجدول324[[#This Row],[عمود36]]="مقبول","ناجح بتقدير مقبول"&" "&AX44,IF(COUNTBLANK($AM44:$AV44)=10,الجدول324[[#This Row],[عمود36]],"يحتاج إلى عناية في : "&textjoin(" و ",$AM44:$AV44)))))) -> يحتاج إلى عناية في : تقنية المعلومات | AR44: تقنية المعلومات | AW44: FALSE | AY44: 24

Sheet ورقة1
E7: التراتيب
E8: 1 | F8: =atrteb(E8) -> الترتيب الأول
E9: 2 | F9: =atrteb(E9) -> الترتيب الثاني
E10: 3 | F10: =atrteb(E10) -> الترتيب الثالث
E11: 5 | F11: =atrteb(E11) -> الترتيب الخامس
E12: 2 | F12: =atrteb(E12) -> الترتيب الثاني
E13: 4 | F13: =atrteb(E13) -> الترتيب الرابع
E14: 6 | F14: =atrteb(E14) -> الترتيب السادس
E15: 7 | F15: =atrteb(E15) -> الترتيب السابع
E16: 8 | F16: =atrteb(E16) -> الترتيب الثامن
E17: 9 | F17: =atrteb(E17) -> الترتيب التاسع
E18: 10 | F18: =atrteb(E18) -> الترتيب العاشر
